Cogmind - Beta 16 @@@ ROGUE MODE // 2025.12.29 @ 01:19:44 Player: tsintsir Result: Destroyed by X-57 Shotgunner with Shotgun Performance ------------- Evolutions (2) 1000 Regions Visited (4) 800 Robots Destroyed (111) 555 Value Destroyed (3539) 3539 Prototype IDs (3) 60 Alien Tech Used (0) 0 Bonus (1083) 1083 TOTAL SCORE: 7037 Bonus ------- High Alert Combat Kills 383 Entered Garrisons 200 Used RIF Installer 500 Cogmind --------- Core Integrity 0/550 Matter 223/300 Energy 99/100 System Corruption 2% Temperature Cool (0) Movement Core (50) Location -8/Garrison Parts ------- > --- POWER (1) -------- (None) > --- PROPULSION (4) --- (None) > --- UTILITY (3) ------ (None) > --- WEAPON (3) ------- (None) > --- INVENTORY (5) ---- Armored Wheel Compact Matter Pod (150) Kinecellerator Heavy Assault Rifle Datajack Peak State ------------ > --- POWER ------------ Heavy Ion Engine > --- PROPULSION ------- Wheel Wheel Armored Wheel Armored Wheel > --- UTILITY ---------- Small Storage Unit Improved Signal Interpreter Advanced Targeting Computer > --- WEAPON ----------- Heavy Assault Rifle Minigun Minigun > --- INVENTORY -------- Deuterium Engine Cooling System Improved Terrain Scanner Heavy Assault Rifle Heavy Assault Rifle Grenade Launcher Datajack Mining Claw [Rating: 25] Favorites ----------- Power Improved Ion Engine Engine Improved Ion Engine Propulsion Wheel Treads Light Treads Leg Aluminum Leg Wheel Wheel Utility Small Storage Unit Device Improved Terrain Scanner Storage Small Storage Unit Processor Advanced Targeting Computer Protection Light Armor Plating Weapon Heavy Assault Rifle Energy Gun EM Pulse Gun Ballistic Gun Heavy Assault Rifle Launcher Grenade Launcher Impact Weapon Hammer Slashing Weapon Katana Special Melee Weapon Datajack Build | -11 -10 -9 -8 -8 ------- Run | Yrd Mat Mat Mat Gar Slots Evolved 4 | . . 2 2 . Power . | . . . . . Propulsion 2 | . . 1 1 . Utility 1 | . . 1 . . Weapon 1 | . . . 1 . Parts Attached 60 | 10 5 16 9 20 Power 10 | 2 1 4 . 3 Engine 10 | 2 1 4 . 3 Core . | . . . . . Reactor . | . . . . . Propulsion 24 | 3 2 7 4 8 Treads 6 | . . . . 6 Leg 3 | . . 1 . 2 Wheel 15 | 3 2 6 4 . Hover . | . . . . . Flight . | . . . . . Utility 7 | 2 1 2 . 2 Device 2 | 1 . . . 1 Storage 1 | 1 . . . . Processor 3 | . 1 2 . . Hackware . | . . . . . Protection 1 | . . . . 1 Artifact . | . . . . . Weapon 19 | 3 1 3 5 7 Energy Gun 1 | 1 . . . . Energy Cannon . | . . . . . Ballistic Gun 13 | 2 . 3 3 5 Ballistic Cannon . | . . . . . Launcher 1 | . 1 . . . Special Weapon . | . . . . . Impact Weapon 1 | . . . . 1 Slashing Weapon 2 | . . . 1 1 Piercing Weapon . | . . . . . Special Melee Weapon 1 | . . . 1 . Unidentified Prototypes 1 | . . 1 . . Parts Lost 26 | . 1 5 1 19 Power 2 | . . 1 . 1 Propulsion 13 | . 1 3 1 8 Utility 2 | . . . . 2 Weapon 9 | . . 1 . 8 Highest Loss Streak 7 | . 1 3 1 7 To Critical Strikes . | . . . . . Average Backups 6 | 1 3 6 7 7 Power . | . 1 . 1 . Propulsion . | . . . . . Utility 1 | . . 1 2 2 Weapon 2 | . 1 2 3 2 Tool/Special . | . . . . . Unused Backups 5 | . . 1 2 2 Power 1 | . . 1 . . Propulsion . | . . . . . Utility 3 | . . . 1 2 Weapon 1 | . . . 1 . Tool/Special . | . . . . . Average Slot Usage (%) 90 | . 98 90 96 85 Engine 9 | . 12 10 9 9 Treads 8 | . . . . 18 Leg 1 | . . . . 2 Wheel 17 | . 27 24 32 3 Device 3 | . 13 2 . 2 Storage 10 | . 14 10 9 9 Processor 15 | . . 19 18 15 Energy Gun 1 | . 11 . . . Ballistic Gun 22 | . 14 20 26 23 Peak Build Rating 25 | 9 9 20 25 24 Average Rating 17 | 5 8 16 24 18 On Entrance 12 | . 9 7 20 24 Avg Prop Armor Cover (%) 4 | . . . . 4 Naked Turns 3 | . . . . 3 Heaviest Build 25 | 14 15 20 22 25 Greatest Support 80 | 26 26 34 44 80 Greatest Overweight (x) 6 | . 1 6 . 6 Average Overweight (x) . | . . . . . Largest Inventory Capacity 8 | 8 8 8 8 8 Average Capacity 7 | 6 8 7 8 7 Most Carried 8 | 2 5 8 8 8 Average Carried 6 | 1 3 6 7 7 Final Capacity 8 | 8 8 8 8 5 Final Carried 8 | 2 5 8 8 5 Class Distribution -------------------- 33% | Mutant 32% | Scavenger-Gunner 17% | Gunner 16% | Scavenger-Mutant Dominant Class ---------------- Mutant | -10/Materials Mutant | -9/Materials Gunner | -8/Materials Scavenger-Gunner | -8/Garrison Resources | -11 -10 -9 -8 -8 ----------- Run | Yrd Mat Mat Mat Gar Matter Collected 2999 | 190 298 783 969 759 Remotely . | . . . . . Salvage Created 4158 | 132 308 1160 1249 1309 Parts 255 | 14 31 76 73 61 Haulers Intercepted 7 | . 2 3 2 . Recyclers Shooed 5 | 1 . 4 . . Parts Field Recycled . | . . . . . Retrieved Matter . | . . . . . Parts Self-Destructed . | . . . . . Prevented . | . . . . . Parts Restored . | . . . . . Kills | -11 -10 -9 -8 -8 ------- Run | Yrd Mat Mat Mat Gar Combat Hostiles Destroyed 78 | . 11 17 20 30 Melee 2 | . . . . 2 Guns 59 | . . 16 17 26 AOE 17 | . 11 1 3 2 Classes Destroyed 13 | 2 6 3 2 . Worker 6 | . 2 2 2 . Builder 1 | . 1 . . . Tunneler 5 | 3 . 1 1 . Hauler 7 | . 2 3 2 . Recycler 4 | 1 . 2 1 . Operator 2 | . . 1 1 . Watcher 8 | . 2 4 2 . Swarmer 17 | . 9 . 3 5 Grunt 34 | . 2 12 9 11 Brawler 3 | . . . 1 2 Duelist 5 | . . 1 1 3 Sentry 18 | . . 4 5 9 Hunter 1 | . . . 1 . Best Kill Streak 7 | 4 5 6 7 6 Combat Bots Only 6 | . 3 3 3 6 Max Kills in Single Turn 3 | 1 3 2 3 1 Gunslinging . | . . . . . Exploded 3 | . 3 1 2 1 Melee 1 | . . . . 1 Uniques/NPCs Destroyed . | . . . . . Combat | -11 -10 -9 -8 -8 -------- Run | Yrd Mat Mat Mat Gar Hostile Shots Fired 410 | . 23 80 50 257 Missed 133 | . 6 23 18 86 Hits 277 | . 17 57 32 171 Melee 24 | . . 11 2 11 Projectile 253 | . 17 46 30 160 Critical Strikes 11 | . 1 2 . 8 Damage Taken 4189 | . 172 940 543 2534 Core 841 | . 41 243 80 477 Absorbed by Shields . | . . . . . Regen/Repaired (Parts) 365 | . . 365 . . Core Remaining (%) 74 | 100 83 39 . . Volleys Fired 252 | 6 23 104 55 64 Largest 3 | 2 2 2 3 3 Hottest 80 | 60 60 60 80 78 Shots Fired 603 | 12 44 208 163 176 Gun 584 | 12 36 207 160 169 Cannon . | . . . . . Launcher 19 | . 8 1 3 7 Special . | . . . . . Kinetic 556 | 6 23 198 160 169 Thermal . | . . . . . Explosive 19 | . 8 1 3 7 Electromagnetic 28 | 6 13 9 . . Robot Hit Streak 37 | 3 6 18 37 26 Robot Miss Streak 4 | 1 4 3 4 3 Penetration Max . | . . . . . Secondary Targets 12 | . . 3 1 8 Max Gunslinging Chain 1 | . . 1 1 1 Shots Hit Robots 430 | 6 21 147 112 144 Core Hits 195 | 6 22 49 56 62 Critical Kills 4 | . . 3 . 1 Critical Parts Destroyed . | . . . . . Critical Strikes 5 | . . 3 . 2 Destroy 4 | . . 3 . 1 Sever 1 | . . . . 1 Melee Attacks 37 | . . . 4 33 Impact 14 | . . . . 14 Slashing 23 | . . . 4 19 Piercing . | . . . . . Sneak Attacks . | . . . . . Combat Hostiles . | . . . . . Follow-up Attacks . | . . . . . Damage Inflicted 7472 | 68 920 1969 2013 2502 Guns 5961 | 68 203 1906 1793 1991 Cannons . | . . . . . Explosions 1182 | . 717 63 220 182 Melee 328 | . . . . 328 Ramming 1 | . . . . 1 Kinetic 5658 | 14 44 1816 1793 1991 Thermal . | . . . . . Explosive 1182 | . 717 63 220 182 Electromagnetic 303 | 54 159 90 . . Impact . | . . . . . Slashing 328 | . . . . 328 Piercing . | . . . . . Highest Corruption 2 | . 1 . . 2 Average Corruption 1 | . 1 . . 2 Corruption Purged . | . . . . . Corruption Blocked . | . . . . . Effects 9 | . 4 . . 5 Message Errors 1 | . . . . 1 Matter Fused 3 | . 2 . . 1 Heat Flow Errors 2 | . . . . 2 Energy Discharges 1 | . 1 . . . Data Loss (major) 1 | . 1 . . . Misfires 1 | . . . . 1 Overload Shots . | . . . . . Overflow Damage 42 | . 35 . . 7 Projectiles . | . . . . . Explosions 42 | . 35 . . 7 Melee . | . . . . . Knockbacks . | . . . . . Impact . | . . . . . Kinetic . | . . . . . Secondary . | . . . . . Self-Inflicted Damage 98 | . 19 . . 79 Shots 3 | . 1 . . 2 Rammed 1 | . . . . 1 Targets Rammed 1 | . . . . 1 Kicked . | . . . . . Crushed . | . . . . . Highest Temperature 103 | 40 40 28 83 103 Average Temperature 20 | 26 14 9 21 23 Received Heat Transfer 1137 | . 27 264 216 630 Siege Activations . | . . . . . Martial Activations . | . . . . . Shielding Activations . | . . . . . Robots Disrupted . | . . . . . Combat Hostiles . | . . . . . Robots Corrupted . | . . . . . Combat Hostiles . | . . . . . Parts Fried 3 | . 2 1 . . Impact Corruptions . | . . . . . Robots Melted . | . . . . . Combat Hostiles . | . . . . . Parts Melted . | . . . . . Heat Transferred . | . . . . . Parts Sabotaged . | . . . . . Parts Stolen . | . . . . . Parts Stripped . | . . . . . Power Chain Reactions . | . . . . . Alert | -11 -10 -9 -8 -8 ------- Run | Yrd Mat Mat Mat Gar Maximum Alert Level 4 | . 1 1 1 4 Low Security (%) 43 | 100 97 79 61 . Level 1 16 | . 2 20 38 8 Level 2 20 | . . . . 47 Level 3 17 | . . . . 40 Level 4 1 | . . . . 4 Level 5 . | . . . . . High Security . | . . . . . Max Security . | . . . . . Peak Influence 1172 | 15 200 239 342 1172 Initial 209 | . 6 76 50 209 Average 405 | 3 105 162 192 722 Influence Increases 2692 | 20 398 539 652 1083 Destroy 0b10 Robot/C 1560 | . 220 340 400 600 Destroy 0b10 Robot/NC 165 | 20 35 65 45 . Destroy Leader 280 | . 48 84 128 20 Allied During Kill 3 | . . . . 3 Successful Hack 66 | . 25 7 27 7 Disable Machine 45 | . 15 30 . . Anti-Garrison Action 300 | . . . . 300 Destroy Structure 228 | . 55 13 22 138 Lose Combat Pursuer 45 | . . . 30 15 Influence Decreases 1630 | 10 228 600 449 343 Entered New Map 290 | . 4 104 69 113 Time Decay 1020 | 10 214 446 350 . Lost Part 260 | . 10 50 10 190 Lost Ally 60 | . . . 20 40 Squads Dispatched 7 | . 1 . 6 . Investigation 1 | . 1 . . . Extermination . | . . . . . Reinforcement . | . . . . . Assault . | . . . . . Garrison 6 | . . . 6 . Intercept . | . . . . . Searches Triggered . | . . . . . Construction Impeded . | . . . . . Haulers Reinforced . | . . . . . Active Scanning Responses . | . . . . . Cargo Convoy Interrupts . | . . . . . Stealth | -11 -10 -9 -8 -8 --------- Run | Yrd Mat Mat Mat Gar Distress Signals 7 | . . 5 2 . Communications Jammed . | . . . . . Distress Signals . | . . . . . Times Spotted 108 | . 16 27 30 35 Peak Tracking Total 5 | . 5 5 5 4 Tactical Retreats 2 | . . . 1 1 Traps | -11 -10 -9 -8 -8 ------- Run | Yrd Mat Mat Mat Gar Traps Triggered 4 | . 1 . . 3 Indirectly . | . . . . . Trap Hack Attempts . | . . . . . Triggered . | . . . . . Disarmed . | . . . . . Reprogrammed . | . . . . . Reused . | . . . . . Traps Extracted . | . . . . . Installed . | . . . . . Triggered . | . . . . . Machines | -11 -10 -9 -8 -8 ---------- Run | Yrd Mat Mat Mat Gar Machines Disabled 7 | . 1 2 . 4 Max in Single Turn 2 | . 1 1 . 2 Phase Generator 1 | . . . . 1 Machines Repaired . | . . . . . Machines Dismantled . | . . . . . Machines Sabotaged . | . . . . . Overloaded Fab Kills . | . . . . . Hacking | -11 -10 -9 -8 -8 --------- Run | Yrd Mat Mat Mat Gar Machines Accessed 24 | . 6 6 9 3 Terminals 20 | . 6 4 7 3 Fabricators . | . . . . . Repair Stations 1 | . . 1 . . Recycling Units . | . . . . . Scanalyzers 2 | . . 1 1 . Garrison Access 1 | . . . 1 . Total Hacks 65 | . 15 26 21 3 Successful 30 | . 6 16 7 1 Failed 34 | . 9 10 13 2 Catastrophic 7 | . 1 1 3 2 Database Lockouts 1 | . . . 1 . Manual 41 | . 13 9 17 2 Terminals 44 | . 15 9 17 3 Fabricators . | . . . . . Repair Stations 13 | . . 13 . . Recycling Units . | . . . . . Scanalyzers 7 | . . 4 3 . Garrison Access 1 | . . . 1 . Terminal Hacks 8 | . 4 1 2 1 Prototype ID Bank 1 | . 1 . . . Open Door 1 | . . . . 1 Terminal Index 3 | . 1 1 1 . Hauler Manifests 1 | . 1 . . . Registered Components 2 | . 1 . 1 . Fabricator Hacks . | . . . . . Repair Station Hacks 11 | . . 11 . . Scan Component 6 | . . 6 . . Repair 5 | . . 5 . . Recycling Unit Hacks . | . . . . . Scanalyzer 4 | . . 3 1 . Retrieve Study 4 | . . 3 1 . Garrison Access Hacks 1 | . . . 1 . Unlock Access 1 | . . . 1 . Unauthorized Hacks 6 | . 2 1 3 . Terminals 6 | . 2 1 3 . Assimilate 3 | . 1 . 2 . Operators 3 | . 1 1 1 . Fabricators . | . . . . . Repair Stations . | . . . . . Recycling Units . | . . . . . Scanalyzers . | . . . . . Garrison Access . | . . . . . Data Cores Recovered 2 | . . 1 1 . Used 1 | . . 1 . . Hacking Detections 19 | . 5 6 6 2 Full Trace Events 2 | . 1 . 1 . Feedback Events 1 | . 1 . . . Corruption 1 | . 1 . . . Feedback Blocked . | . . . . . Robot Schematics Acquired . | . . . . . Robots Built . | . . . . . Authchips . | . . . . . Time . | . . . . . Total Robot Build Rating . | . . . . . Part Schematics Acquired . | . . . . . Parts Built . | . . . . . Authchips . | . . . . . Time . | . . . . . Total Part Build Rating . | . . . . . Part Studies Acquired 4 | . . 3 1 . Parts Repaired 5 | . . 5 . . Time 148 | . . 148 . . Parts Recycled . | . . . . . Recycled Matter . | . . . . . Retrieved Matter . | . . . . . Retrieved Components . | . . . . . Parts Scanalyzed . | . . . . . Part Schematics Acquired . | . . . . . Parts Damaged . | . . . . . Bothacking | -11 -10 -9 -8 -8 ------------ Run | Yrd Mat Mat Mat Gar Used RIF Installer 1 | . . . . 1 Robots Hacked . | . . . . . Non-combat . | . . . . . Combat . | . . . . . Robot Hacks Applied . | . . . . . Relay Couplers Released . | . . . . . Fabnet Peak Effective % . | . . . . . Robots Rewired . | . . . . . Allies Hacked . | . . . . . Hacks Repelled . | . . . . . Allies | -11 -10 -9 -8 -8 -------- Run | Yrd Mat Mat Mat Gar Total Allies 4 | . 1 . 1 2 Largest Group 2 | . 1 1 1 2 Highest-Rated Group 45 | . 10 10 10 45 Highest-Rated Ally 25 | . 10 10 10 25 Total Orders . | . . . . . Ally Attacks 3 | . . . . 3 Total Damage 97 | . . . . 97 Kills . | . . . . . Allies Corrupted . | . . . . . Allies Melted . | . . . . . Intel | -11 -10 -9 -8 -8 ------- Run | Yrd Mat Mat Mat Gar Active Infowar (turns) 697 | 9 431 257 . . Terrain 697 | 9 431 257 . . Robot Analysis Total . | . . . . . Derelict Logs Recovered . | . . . . . Drone Launches . | . . . . . Drone Recoveries . | . . . . . Exploration | -11 -10 -9 -8 -8 ------------- Run | Yrd Mat Mat Mat Gar Turns Passed 4324 | 73 448 1109 794 1900 Spaces Moved 2700 | 44 406 568 692 990 Core 19 | 1 . 12 . 6 Treads 781 | . . . . 781 Legs 116 | . . 14 . 102 Wheels 1784 | 43 406 542 692 101 Hover . | . . . . . Flight . | . . . . . Fastest Speed 50 | 50 80 80 80 50 Average Speed 110 | 88 80 90 80 155 Slowest Speed 350 | 100 95 350 80 350 Overloaded Moves . | . . . . . Propulsion Burnouts . | . . . . . Robots Hopped . | . . . . . Potential Cave-ins . | . . . . . Cave-ins Triggered . | . . . . . Exploration Rate (%) 49 | 4 58 45 57 84 Regions Visited 4 Branch Regions . Pre-discovered Areas . | . . . . . Known Exits Taken 3 | . 1 1 1 . Unknown Exits Taken 1 | 1 . . . . Scrap Searched . | . . . . . Spaces Dug 7 | . . . 1 6 Terrain Destroyed 250 | . 55 10 23 162 Melee 7 | . . . 1 6 Projectile . | . . . . . AOE 243 | . 55 10 22 156 Terrain Rammed . | . . . . . Walls Destroyed . | . . . . . Machines Disabled . | . . . . . Actions | -11 -10 -9 -8 -8 --------- Run | Yrd Mat Mat Mat Gar Total 3481 | 63 481 959 815 1163 Wait 301 | 1 29 239 30 2 Move 2696 | 43 405 567 691 990 Hop . | . . . . . Pick Up 27 | . 4 10 6 7 Fast Attach 53 | 10 5 18 6 14 Attach 18 | . 1 4 1 12 Detach 12 | 2 1 4 1 4 Swap 34 | . 10 4 12 8 Drop 30 | 1 3 9 9 8 Fire 252 | 6 23 104 55 64 Melee 37 | . . . 4 33 Ram 1 | . . . . 1 Kick . | . . . . . Crush . | . . . . . Escape Stasis 20 | . . . . 20 Rewire . | . . . . . Trap . | . . . . . Miscellaneous . | . . . . . Route ------- -11/Scrapyard -10/Materials (discovered 3 exits: *Mat x2 / [*Min]) -9/Materials -8/Materials (discovered 4 exits: *Fac x3 / Gar) -8/Garrison (discovered 3 exits: *Mat x3) History --------- Turn | Location | Event 20 | -11/Scrapyard | Discovered new exit (range 15) 74 | -11/Scrapyard | Entered Materials 223 | -10/Materials | Discovered new exit (range 8) 263 | -10/Materials | Discovered new exit (range 7) 300 | -10/Materials | Discovered new exit (range 15) 409 | -10/Materials | Build established: Mutant 518 | -10/Materials | Identified exit to Materials 522 | -10/Materials | Entered another Materials area 522 | -9/Materials | Accompanied by 1 ally 522 | -9/Materials | Evolved 2 slots: Propulsion x1, Utility x1 615 | -9/Materials | Lost 3 parts (1p1n1w) 1240 | -9/Materials | Core integrity fell below 50% 1369 | -9/Materials | Repaired Hvy. Assault Rifle+ 1403 | -9/Materials | Repaired Hvy. Assault Rifle+ 1430 | -9/Materials | Repaired Wheel 1457 | -9/Materials | Repaired Sml. Storage Unit 1497 | -9/Materials | Repaired Hvy. Assault Rifle+ 1622 | -9/Materials | Discovered new exit (range 5) 1624 | -9/Materials | Identified exit to Materials 1631 | -9/Materials | Entered another Materials area 1631 | -8/Materials | Accompanied by 1 ally 1631 | -8/Materials | Evolved 2 slots: Propulsion x1, Weapon x1 1681 | -8/Materials | Garrison activated, responded to threat 1955 | -8/Materials | Build established: Gunner 1970 | -8/Materials | Discovered new exit (range 14) 1979 | -8/Materials | Identified exit to Factory 2031 | -8/Materials | Central database locked down 2096 | -8/Materials | Discovered exit to Factory (range 10) 2117 | -8/Materials | Garrison activated, responded to threat 2263 | -8/Materials | Identified exit to Garrison 2370 | -8/Materials | Discovered exit to Factory (range 11) 2425 | -8/Materials | Entered Garrison 2579 | -8/Garrison | Phase Generator disabled 2588 | -8/Garrison | Triggered checkpoint 2651 | -8/Garrison | Lost 4 parts (3n1w) 2839 | -8/Garrison | Triggered checkpoint 2947 | -8/Garrison | Build established: Scavenger-Gunner 3029 | -8/Garrison | Triggered checkpoint 3057 | -8/Garrison | Core integrity fell below 50% 3097 | -8/Garrison | Lost 3 parts (3w) 3396 | -8/Garrison | Discovered new exit (range 6) 3447 | -8/Garrison | Identified exit to Materials 3555 | -8/Garrison | Triggered checkpoint 3739 | -8/Garrison | Triggered checkpoint 3807 | -8/Garrison | Discovered exit to Materials (range 10) 3911 | -8/Garrison | Triggered checkpoint 3993 | -8/Garrison | Triggered checkpoint 4032 | -8/Garrison | Discovered exit to Materials (range 8) 4079 | -8/Garrison | Rescued a captive Derelict 4086 | -8/Garrison | Rescued a captive Derelict 4132 | -8/Garrison | Installed Relay Interface Framework 4295 | -8/Garrison | Core integrity fell below 20% 4322 | -8/Garrison | Released all parts (5) 4325 | -8/Garrison | Destroyed by X-57 Shotgunner with Shotgun Last Messages --------------- 04156_ Y-45 Defender destroyed. 04170_ Acquired 55 matter. 04173_ Acquired Lgt. Treads. 04188_ System corrupted: Heat flow error (+106). 04207_ System corrupted: Heat flow error (+126). 04225_ ALERT: Garrison interior compromised. 04284_ Lgt. Treads destroyed. 04290_ Hvy. Assault Rifle+ destroyed. 04304_ Imp. Ion Engine destroyed. 04309_ Lgt. Treads destroyed. 04319_ System corrupted: Matter fused (-8). 04319_ X-57 Shotgunner Shotgun severed. 04320_ Sml. Storage Unit destroyed. 04322_ Lgt. Treads destroyed. 04322_ Released Lgt. Armor Plating. 04322_ Released Deuterium Engine. 04322_ Released Katana. 04322_ Released Adv. Targeting Computer. 04322_ Released Lgt. Treads. 04323_ Slammed into X-57 Shotgunner. Map ----- +----------------------------------------------------+ | #??????????????????????????????? | | ## ###########??????????????????????????????? | | ## ###??????????????????????????????????????? | | #??????????????????????????????????????? | | #??????????????????????????????????????? | | #??????????????????????????????????????? | | #??????????????????????????????????????? | | ## ###??????????????????????????????????????? | | ## ###########??????????????????????????????? | | #??????????????????????????????? | | #??????????????????????????????? | | ### #### #??????????????????????????????? | | """######## #### #??????????????????????????????? | | ==[%!*! #??????????????????????????????? | | #???????######## #??????????????????????????????? | | #??????????????# #??????????????????????????????? | | #????????#?????# #??????????????????????????????? | | ?????????# ????# #??????????????????????????????? | | ?????????? ???# #????????#?????????????????????? | | ???????????#^??# #???????/#?????????????????????? | | ???????????# ## #######%=#?????????????????????? | | ???????????# = #??????????????????????? | | ???????????# ## #### ###???????????????????????? | | ???????????# ??# #### #####?????????????????????? | | ?????????? ???# #?????? #????????????? | | ?????????# ????# x @ #?????? #????????????? | | ?????????#?????####### ## #?????? #????????????? | | ?????????????????????#*## #?????? ###??????????? | | ?????????????????????#!## ######? #??????????? | | ?????????????????????#[/ ## #??????????? | | ?????????????????????#=## #### ## ???????????? | | ?????????????????????# ## #??# ## #????????????? | | ????????????##???????# ## #### ## #????????????? | | ???????????? #??????# ## ! #????????????? | | ???????????? #??????# ## %![ #???#######??? | | ???????????? #??????# ########%## #???#!%T# #??? | | ????????????# #??##### #??????#[## #???#! #??? | | ????????????# #??# #??????#=## #???#%[[###??? | | ?????#####??# #?## ### #??????# ## ###### ##????? | | ?????#"""""?# #?# *#?# #??????#* = ## #?????? | | ?????#" "## #### ### ######## ## ### ## #?????? | | ?????#" ## ### ## #?????? | | ?????#" ############### ####### #?????? | | ?????#"""""?????????????## ##????# #?????? | | ?????#####??????????????# #????####### #?????? | | ????????????????????????#" "#??????????# < #?????? | | ????????????????????????#" "#??????????# #?????? | | ????????????????????????#" "#??????????#####?????? | | ????????????????????????#"""#????????????????????? | | ????????????????????????#####????????????????????? | +----------------------------------------------------+ Best States ------------- Heat Dissipation 31 Energy Generation 14 Energy Capacity 280 Matter Stores 300 Matter Capacity 300 Sight Range 16 Terrain Scan Range 16 Terrain Scan Density 10 Armor Coverage 150 Evasion (%) 44 Targeting Accuracy 8 Recoil Reduction 4 Kinecelleration 30 Item Schematics ----------------- None Robot Schematics ------------------ None Fabricated ------------ Nothing Repaired ---------- Hvy. Assault Rifle | 12% | -9/Materials Hvy. Assault Rifle | 18% | -9/Materials Wheel | 20% | -9/Materials Sml. Storage Unit | 40% | -9/Materials Hvy. Assault Rifle | 57% | -9/Materials Studied --------- Hvy. Assault Rifle | -9/Materials | Hacked Grenade Launcher | -9/Materials | Hacked Arm. Wheel | -9/Materials | Hacked Minigun | -8/Materials | Hacked Alien Tech Used ----------------- None Achievements -------------- None Challenges ------------ None Game ------ Seed FactoryMassCompanion Manual? 0 Play Time 00:44:23 Cumulative 65.9 hours Start 2025.12.29 @ 00:36:55 End 2025.12.29 @ 01:19:44 Sessions 1 Manual Loads 0 Difficulty Rogue Special Mode None Game No. 59 Rogue 59 Adventurer 0 Explorer 0 Win Type - Total 1 Types 0/0/0/1/0/0/0/0/0/0 Lore% 42 Gallery% 45 Achievement% 35 Wizard Run 0 Options --------- Layout 0 ASCII 0 Keyboard 0 Movement Mouse Keybinds 0 Fullscreen 2 Font 24/Smallcaps Map View 76x50 Zoom Use 0% Tactical HUD 1 Map Filters NONE Filters NONE Steam 1 RUN: df979d60-43e4-48eb-8eae-542b579eb69e